bitfinex/quotes_BTCUSD_20230905
["timestamp","ask_amount","ask_price","bid_price","bid_amount"]
[1693890976306,2.80188813,25748.0,25747.0,0.00042463]
[1693890976510,2.79988813,25748.0,25747.0,0.00042463]
[1693890976715,2.79788813,25748.0,25747.0,0.00042463]
[1693890976944,2.80288813,25748.0,25747.0,0.028]
[1693890977497,2.80288813,25748.0,25747.0,0.013]
[1693890977708,2.80288813,25748.0,25742.0,0.03151675]
[1693890977907,0.0854,25745.0,25742.0,0.03887]
[1693890978253,0.0854,25744.0,25742.0,0.03887]
[1693890978680,0.0854,25744.0,25741.0,0.09262081]
[1693890978852,0.28346065,25743.0,25742.0,0.004]
[1693890979105,0.28346065,25743.0,25742.0,0.10055552]
[1693890979230,0.28346065,25743.0,25742.0,0.11455552]
[1693890979655,0.28346065,25743.0,25742.0,0.10055552]
[1693890980060,0.29546065,25743.0,25742.0,0.11455552]
[1693890981031,0.38086065,25743.0,25742.0,0.11455552]
[1693890981425,0.38286065,25743.0,25742.0,0.11855552]
[1693890982038,0.25614211,25742.0,25740.0,0.01689392]
[1693890982189,0.25614211,25742.0,25741.0,0.03887]
[1693890983235,0.25814211,25742.0,25741.0,0.03887]
[1693890983775,0.26014211,25742.0,25741.0,0.04387]
[1693890984439,0.26098786,25741.0,25739.0,0.67860821]
[1693890984693,0.26098786,25741.0,25740.0,0.03887]
[1693890985442,0.780955,25742.0,25740.0,0.03887]
[1693890985443,0.776955,25742.0,25740.0,0.03887]
[1693890985686,2.02798527,25741.0,25740.0,0.03887]
[1693890986143,2.02598527,25741.0,25740.0,0.03887]
[1693890986352,2.02998527,25741.0,25740.0,0.03987]
[1693890986730,2.30452791,25741.0,25740.0,0.03987]
[1693890986934,2.30452791,25741.0,25736.0,0.89579327]
[1693890986935,2.02998527,25741.0,25736.0,0.89579327]
[1693890987146,0.0854,25740.0,25737.0,0.03887]
[1693890987351,0.862404,25740.0,25737.0,0.03887]
[1693890987888,1.15726358,25740.0,25737.0,0.03887]
[1693890988087,0.38664527,25739.0,25737.0,0.03887]
[1693890988289,0.47204527,25739.0,25737.0,0.03887]
[1693890989459,0.25236419,25738.0,25737.0,0.03887]
[1693890991076,0.25436419,25738.0,25737.0,0.03887]
[1693890991280,0.64100946,25738.0,25737.0,0.03887]
[1693890991666,0.64300946,25738.0,25737.0,0.03887]
[1693890994060,0.004,25738.0,25737.0,0.427415]
[1693890994270,0.004,25738.0,25737.0,1.29729302]
[1693890994473,0.004,25738.0,25737.0,1.38269302]
[1693890997308,0.004,25738.0,25737.0,1.86143829]
[1693890997532,0.004,25738.0,25737.0,2.26810329]
[1693890997920,0.004,25738.0,25737.0,2.26630329]
[1693890998130,0.004,25738.0,25737.0,2.27884329]
[1693890998254,0.004,25738.0,25737.0,2.32795568]
[1693890998451,0.004,25738.0,25737.0,2.51227392]
[1693890998660,0.004,25738.0,25737.0,2.51269392]
[1693890998861,0.004,25738.0,25737.0,2.51233392]
[1693890999095,0.004,25738.0,25737.0,2.51125392]
[1693890999303,0.004,25738.0,25737.0,2.37233492]
[1693890999519,0.004,25738.0,25737.0,2.60324949]
[1693890999754,0.004,25738.0,25737.0,2.66076525]
[1693890999952,0.004,25738.0,25737.0,2.66094525]
[1693891000157,0.004,25738.0,25737.0,2.66016525]
[1693891000355,0.004,25738.0,25737.0,2.65554525]
[1693891000577,0.004,25738.0,25737.0,2.65302525]
[1693891000753,0.004,25738.0,25737.0,2.67030525]
[1693891000955,0.004,25738.0,25737.0,2.66724525]
[1693891001271,0.004,25738.0,25737.0,2.66598525]
[1693891001473,0.004,25738.0,25737.0,2.66874525]
[1693891001651,0.004,25738.0,25737.0,2.4800056]
[1693891001853,0.004,25738.0,25737.0,2.4792856]
[1693891002053,0.004,25738.0,25737.0,2.4839056]
[1693891002346,0.004,25738.0,25737.0,2.4833656]
[1693891002548,0.004,25738.0,25737.0,2.4782056]
[1693891002771,0.004,25738.0,25737.0,2.4780256]
[1693891002975,0.004,25738.0,25737.0,2.7829456]
[1693891003176,0.004,25738.0,25737.0,3.0572256]
[1693891003437,0.004,25738.0,25737.0,3.0453456]
[1693891003625,0.004,25738.0,25737.0,3.0339456]
[1693891003791,0.004,25738.0,25737.0,3.0200256]
[1693891003994,0.004,25738.0,25737.0,3.0197856]
[1693891004200,0.004,25738.0,25737.0,3.0191856]
[1693891004378,0.004,25738.0,25737.0,3.0148656]
[1693891004585,0.004,25738.0,25737.0,3.0140256]
[1693891004797,0.004,25738.0,25737.0,3.0134256]
[1693891004992,0.004,25738.0,25737.0,3.0130656]
[1693891005197,0.004,25738.0,25737.0,3.0122256]
[1693891005489,0.004,25738.0,25737.0,3.0099456]
[1693891005695,0.004,25738.0,25737.0,3.0091056]
[1693891005914,0.004,25738.0,25737.0,3.0086256]
[1693891006321,0.004,25738.0,25737.0,3.0079056]
[1693891006480,0.004,25738.0,25737.0,2.77585103]
[1693891006678,0.004,25738.0,25737.0,2.77537103]
[1693891006889,0.004,25738.0,25737.0,2.77501103]
[1693891007139,0.004,25738.0,25737.0,2.77465103]
[1693891007344,0.004,25738.0,25737.0,2.77429103]
[1693891007654,0.004,25738.0,25737.0,2.77309103]
[1693891007814,0.004,25738.0,25737.0,2.77273103]
[1693891008016,0.004,25738.0,25737.0,2.77309103]
[1693891008198,0.004,25738.0,25737.0,2.77297103]
[1693891008398,0.004,25738.0,25737.0,2.76553103]
[1693891008672,0.004,25738.0,25737.0,2.62231103]
[1693891008877,0.004,25738.0,25737.0,2.60185103]
[1693891009085,0.004,25738.0,25737.0,2.58073103]
[1693891009285,0.004,25738.0,25737.0,2.57845103]
[1693891009480,0.004,25738.0,25737.0,2.57965103]
[1693891009631,0.004,25738.0,25737.0,2.57563103]
[1693891009984,0.004,25738.0,25737.0,2.57779103]
[1693891010184,0.004,25738.0,25737.0,2.57965103]
[1693891010423,0.004,25738.0,25737.0,2.58037103]
[1693891010623,0.004,25738.0,25737.0,2.59519103]
[1693891010946,0.004,25738.0,25737.0,2.59585103]
[1693891011146,0.004,25738.0,25737.0,2.59603103]
[1693891011359,0.004,25738.0,25737.0,2.59795103]
[1693891011556,0.004,25738.0,25737.0,2.59897103]
[1693891011759,0.004,25738.0,25737.0,2.59849103]
[1693891011965,0.004,25738.0,25737.0,2.57849103]
[1693891012168,0.004,25738.0,25737.0,2.59639103]
[1693891012325,0.004,25738.0,25737.0,2.59621103]
[1693891012536,0.004,25738.0,25737.0,2.58955103]
[1693891012730,0.004,25738.0,25737.0,2.59165103]
[1693891012961,0.004,25738.0,25737.0,2.60203103]
[1693891013159,0.004,25738.0,25737.0,2.60155103]
[1693891013382,0.004,25738.0,25737.0,2.60203103]
[1693891013585,0.004,25738.0,25737.0,2.59993103]
[1693891013781,0.004,25738.0,25737.0,2.59981103]
[1693891013986,0.004,25738.0,25737.0,2.60023103]
[1693891014137,0.004,25738.0,25737.0,2.60059103]
[1693891014339,0.004,25738.0,25737.0,2.60071103]
[1693891014543,0.004,25738.0,25737.0,2.60047103]
[1693891014758,0.004,25738.0,25737.0,2.60053103]
[1693891014949,0.004,25738.0,25737.0,2.59921103]
[1693891015177,0.004,25738.0,25737.0,2.60017103]
[1693891015379,0.004,25738.0,25737.0,2.60023103]
[1693891015579,0.004,25738.0,25737.0,2.60011103]
[1693891015782,0.004,25738.0,25737.0,2.60095103]
[1693891015982,0.004,25738.0,25737.0,2.60089103]
[1693891016190,0.004,25738.0,25737.0,2.60167103]
[1693891016391,0.004,25738.0,25737.0,2.60137103]
[1693891016646,0.004,25738.0,25737.0,2.60203103]
[1693891016850,0.004,25738.0,25737.0,2.60191103]
[1693891017055,0.004,25738.0,25737.0,2.61757103]
[1693891017272,0.004,25738.0,25737.0,2.63233103]
[1693891017507,0.004,25738.0,25737.0,2.63089103]
[1693891017708,0.004,25738.0,25737.0,2.63161103]
[1693891017817,0.004,25738.0,25737.0,2.62879103]
[1693891018033,0.004,25738.0,25737.0,2.62705103]
[1693891018239,0.004,25738.0,25737.0,2.62651103]
[1693891018452,0.004,25738.0,25737.0,2.62489103]
[1693891018667,0.004,25738.0,25737.0,2.62471103]
[1693891018868,0.004,25738.0,25737.0,2.62399103]
[1693891019129,0.004,25738.0,25737.0,2.62339103]
[1693891019358,0.004,25738.0,25737.0,2.61253103]
[1693891019530,0.004,25738.0,25737.0,2.61487103]
[1693891019733,0.004,25738.0,25737.0,2.61613103]
[1693891019910,0.004,25738.0,25737.0,2.61625103]
[1693891020104,0.004,25738.0,25737.0,2.59625103]
[1693891020306,0.004,25738.0,25737.0,2.59601103]
[1693891020511,0.004,25738.0,25737.0,2.58827103]
[1693891020716,0.004,25738.0,25737.0,2.55245103]
[1693891021064,0.004,25738.0,25737.0,2.55053103]
[1693891021237,0.004,25738.0,25737.0,2.55365103]
[1693891021445,0.004,25738.0,25737.0,2.55155103]
[1693891021644,0.004,25738.0,25737.0,2.55305103]
[1693891021869,0.004,25738.0,25737.0,2.55353103]
[1693891022018,0.004,25738.0,25737.0,2.55395103]
[1693891022219,0.004,25738.0,25737.0,2.55647103]
[1693891022608,0.004,25738.0,25737.0,2.32833735]
[1693891024488,0.004,25738.0,25737.0,2.45395238]
[1693891024704,0.004,25738.0,25737.0,2.45395315]
[1693891024915,0.26237544,25738.0,25737.0,2.26833735]
[1693891025119,0.26237544,25738.0,25737.0,1.50700983]
[1693891025327,0.26237544,25738.0,25737.0,1.03306483]
[1693891025552,0.26237544,25738.0,25737.0,1.1258888]
[1693891026180,0.26237544,25738.0,25737.0,1.5144338]
[1693891029288,0.26237544,25738.0,25737.0,1.1258888]
[1693891034021,0.25737544,25738.0,25737.0,1.1258888]
[1693891034753,0.25737544,25738.0,25737.0,1.03306483]
[1693891035323,0.212,25740.0,25737.0,1.42160983]
[1693891035529,0.1591,25739.0,25738.0,0.90876245]
[1693891035785,0.1591,25739.0,25738.0,0.96572113]
[1693891036847,0.1611,25739.0,25738.0,0.96772113]
[1693891037252,0.1611,25739.0,25738.0,0.98772113]
[1693891037907,0.1631,25739.0,25738.0,0.98972113]
[1693891040300,0.4270117,25739.0,25738.0,0.98972113]
[1693891040501,0.2679117,25739.0,25738.0,0.98972113]
[1693891040877,0.2679117,25739.0,25738.0,0.21267913]
[1693891042146,0.2679117,25739.0,25738.0,0.11982868]
[1693891043922,0.2659117,25739.0,25738.0,0.11782868]
[1693891044494,1.0449417,25739.0,25738.0,0.11982868]
[1693891044687,1.0429417,25739.0,25738.0,0.11782868]
[1693891045120,1.0449417,25739.0,25738.0,0.11982868]
[1693891046116,2.20861697,25739.0,25738.0,0.09982868]
[1693891053698,1.0449417,25739.0,25738.0,0.09982868]
[1693891053873,0.2679117,25739.0,25738.0,0.48835868]
[1693891054058,0.2679117,25739.0,25738.0,0.87688868]
[1693891054756,0.2679117,25739.0,25738.0,0.48835868]
[1693891055543,0.16027563,25740.0,25738.0,0.48835868]
[1693891055745,0.79698,25741.0,25738.0,1.26541868]
[1693891055746,0.02,25741.0,25738.0,1.26541868]
[1693891055919,0.02,25741.0,25738.0,1.42007679]
[1693891056120,0.02,25741.0,25738.0,1.35826913]
[1693891056325,0.27341048,25741.0,25738.0,1.35626913]
[1693891056767,0.002,25740.0,25738.0,1.35826913]
[1693891057160,0.27541048,25741.0,25738.0,1.35726913]
[1693891057528,0.27741048,25741.0,25738.0,1.36126913]
[1693891058352,1.05438148,25741.0,25738.0,1.36126913]
[1693891058786,1.05238148,25741.0,25738.0,1.35826913]
[1693891059141,0.002,25740.0,25738.0,1.36126913]
[1693891059316,0.002,25740.0,25738.0,0.97273913]
[1693891059653,1.05238148,25741.0,25738.0,0.96973913]
[1693891059888,1.05438148,25741.0,25738.0,0.97273913]
[1693891060066,1.05238148,25741.0,25738.0,0.96873913]
[1693891060480,0.002,25740.0,25738.0,0.96973913]
[1693891060725,0.22634714,25740.0,25738.0,0.97273913]
[1693891061663,0.22434714,25740.0,25738.0,0.96873913]
[1693891062062,0.22434714,25740.0,25738.0,0.97273913]
[1693891062264,0.99935114,25740.0,25738.0,0.58120913]
[1693891062466,0.99935114,25740.0,25738.0,0.58020913]
[1693891062666,0.99935114,25740.0,25738.0,0.3279082]
[1693891062890,1.77635114,25740.0,25738.0,0.3479082]
[1693891063093,1.78035114,25740.0,25738.0,0.3549082]
[1693891064625,1.78035114,25740.0,25739.0,0.09285045]
[1693891064846,1.00334714,25740.0,25739.0,0.18870458]
[1693891065136,1.00334714,25740.0,25739.0,0.18877717]
[1693891065263,1.78034714,25740.0,25739.0,0.18877717]
[1693891065468,1.00134714,25740.0,25739.0,0.18877717]
[1693891065686,1.77834714,25740.0,25739.0,0.18877717]
[1693891065891,1.77934714,25740.0,25739.0,0.19277717]
[1693891066120,1.78234714,25740.0,25739.0,0.19577717]
[1693891067579,1.56,25740.0,25739.0,0.00148089]
[1693891067812,2.337,25740.0,25739.0,0.05587483]
[1693891067994,2.61662359,25740.0,25739.0,0.00148089]
[1693891068390,2.61662359,25740.0,25738.0,0.19825457]
[1693891068391,2.61362359,25740.0,25738.0,0.19825457]
[1693891068746,2.61362359,25740.0,25739.0,0.002]
[1693891068944,2.99726886,25740.0,25738.0,0.19825457]
[1693891069147,3.00026886,25740.0,25738.0,0.19825457]
[1693891069347,3.00326886,25740.0,25739.0,0.002]
[1693891069549,3.00026886,25740.0,25739.0,0.002]
[1693891069953,0.29155042,25739.0,25738.0,0.00595851]
[1693891070132,1.84561042,25739.0,25738.0,0.04482851]
[1693891070880,2.71773527,25739.0,25738.0,0.04482851]
[1693891071092,2.94955235,25739.0,25738.0,0.00595851]
[1693891072394,0.777091,25737.0,25736.0,0.03637106]
[1693891073322,0.779091,25737.0,25736.0,0.03637106]
[1693891073524,0.9948808,25737.0,25736.0,0.03637106]
[1693891074184,0.9948808,25737.0,25735.0,0.87405156]
[1693891074450,0.9948808,25737.0,25735.0,0.67973482]
[1693891074608,0.28376659,25736.0,25735.0,0.862533]
[1693891075013,0.28376659,25736.0,25735.0,0.91693829]
[1693891075903,0.28376659,25736.0,25735.0,0.91693729]
[1693891076106,0.44122159,25736.0,25735.0,0.91693729]
[1693891076310,0.44322159,25736.0,25735.0,0.91693729]
[1693891076935,0.44322159,25736.0,25735.0,0.87860864]
[1693891078116,0.45322159,25736.0,25735.0,0.87860864]
[1693891079003,0.45322159,25736.0,25735.0,0.84027999]
[1693891079390,0.45322159,25736.0,25735.0,0.99129617]
[1693891079600,0.45322159,25736.0,25735.0,0.99129197]
[1693891079802,0.45322159,25736.0,25735.0,0.85184004]
[1693891080287,0.45322159,25736.0,25735.0,1.17722649]
[1693891080491,0.45322159,25736.0,25735.0,1.17722624]
[1693891080649,0.45322159,25736.0,25735.0,1.03777481]
[1693891081319,0.45322159,25736.0,25735.0,1.02359321]
[1693891082388,0.45322159,25736.0,25735.0,1.1630428]
[1693891083216,0.45322159,25736.0,25735.0,1.06250803]
[1693891083623,0.45322159,25736.0,25735.0,1.06794693]
[1693891085898,0.45322159,25736.0,25735.0,0.96445957]
[1693891086343,0.45322159,25736.0,25735.0,1.2025425]
[1693891087189,0.45322159,25736.0,25735.0,1.16421385]
[1693891088874,0.45322159,25736.0,25735.0,0.97827908]
[1693891089285,0.45322159,25736.0,25735.0,1.0656898]
[1693891090470,0.45322159,25736.0,25735.0,1.0515082]
[1693891092794,0.45322159,25736.0,25735.0,0.9215625]
[1693891093812,0.45322159,25736.0,25735.0,0.88323385]
[1693891094245,0.45322159,25736.0,25735.0,0.93414598]
[1693891095974,0.45322159,25736.0,25735.0,0.91996438]
[1693891097470,0.45322159,25736.0,25735.0,0.82696887]
[1693891098299,0.45322159,25736.0,25735.0,0.68515286]
[1693891098502,0.45322159,25736.0,25735.0,0.84115047]
[1693891100721,0.45322159,25736.0,25735.0,0.84114852]
[1693891102696,0.45322159,25736.0,25735.0,0.82696692]
[1693891103108,0.45322159,25736.0,25735.0,0.83841605]
[1693891103305,1.723697,25736.0,25735.0,0.06164614]
[1693891103512,1.723697,25736.0,25735.0,0.04977583]
[1693891103737,2.01761101,25736.0,25735.0,0.04977583]
[1693891104135,2.01761101,25736.0,25734.0,0.38859]
[1693891104339,0.27596403,25735.0,25734.0,0.738315]
[1693891104540,0.27596403,25735.0,25734.0,0.733315]
[1693891104949,0.27596403,25735.0,25734.0,0.69945]
[1693891105128,0.27596403,25735.0,25734.0,0.74991575]
[1693891106898,0.27796403,25735.0,25734.0,0.74991575]
[1693891107355,0.27996403,25735.0,25734.0,0.74991575]
[1693891108314,0.27996403,25735.0,25734.0,0.79972442]
[1693891108542,0.27996403,25735.0,25734.0,0.44999942]
[1693891108749,0.27996403,25735.0,25734.0,0.79972442]
[1693891110918,0.27996403,25735.0,25734.0,0.78812867]
[1693891113291,0.27996403,25735.0,25734.0,0.65780619]
[1693891113710,0.27996403,25735.0,25734.0,0.70535137]
[1693891113944,0.27996403,25735.0,25734.0,0.71713319]
[1693891114394,0.27996403,25735.0,25734.0,0.797647]
[1693891116563,0.27996403,25735.0,25734.0,0.77196581]
[1693891117329,0.27996403,25735.0,25734.0,0.85736581]
[1693891118918,0.27996403,25735.0,25734.0,0.883047]
[1693891121127,0.27996403,25735.0,25734.0,0.844177]
[1693891121323,0.27996403,25735.0,25734.0,0.883047]
[1693891123334,0.27996403,25735.0,25734.0,0.88326237]
[1693891133186,0.004,25735.0,25734.0,2.55654326]
[1693891133398,0.004,25735.0,25734.0,2.87606808]
[1693891133611,0.004,25735.0,25734.0,2.81322808]
[1693891133821,0.004,25735.0,25734.0,2.59314808]
[1693891133999,0.004,25735.0,25734.0,2.77188285]
[1693891134210,0.004,25735.0,25734.0,2.77482285]
[1693891134385,0.004,25735.0,25734.0,2.77470285]
[1693891134592,0.004,25735.0,25734.0,2.77188285]
[1693891134789,0.004,25735.0,25734.0,2.77866285]
[1693891134996,0.004,25735.0,25734.0,2.78478285]
[1693891135193,0.004,25735.0,25734.0,2.92236285]
[1693891135394,0.004,25735.0,25734.0,2.92200285]
[1693891135769,0.004,25735.0,25734.0,2.92128285]
[1693891136005,0.004,25735.0,25734.0,2.92032285]
[1693891136177,0.004,25735.0,25734.0,2.91996285]
[1693891136502,0.004,25735.0,25734.0,2.91948285]
[1693891136705,0.004,25735.0,25734.0,2.92140285]
[1693891136906,0.004,25735.0,25734.0,2.92392285]
[1693891137136,0.004,25735.0,25734.0,2.92380285]
[1693891137338,0.004,25735.0,25734.0,2.92284285]
[1693891137537,0.004,25735.0,25734.0,2.95476285]
[1693891137743,0.004,25735.0,25734.0,2.99928285]
[1693891137945,0.004,25735.0,25734.0,2.99304285]
[1693891138155,0.004,25735.0,25734.0,2.99232285]
[1693891138355,0.004,25735.0,25734.0,2.99064285]
[1693891138488,0.004,25735.0,25734.0,2.98944285]
[1693891138692,0.004,25735.0,25734.0,2.99100285]
[1693891138901,0.004,25735.0,25734.0,3.09162441]
[1693891139138,0.004,25735.0,25734.0,3.06234441]
[1693891139371,0.004,25735.0,25734.0,3.06294441]
[1693891139597,0.004,25735.0,25734.0,3.06246441]
[1693891139829,0.004,25735.0,25734.0,3.06186441]
[1693891140027,0.004,25735.0,25734.0,3.06102441]
[1693891140222,0.004,25735.0,25734.0,3.05790441]
[1693891140529,0.004,25735.0,25734.0,3.05490441]
[1693891140778,0.004,25735.0,25734.0,3.05154441]
[1693891141015,0.004,25735.0,25734.0,3.04974441]
[1693891141270,0.004,25735.0,25734.0,3.04914441]
[1693891141472,0.004,25735.0,25734.0,3.04926441]
[1693891141728,0.004,25735.0,25734.0,3.04794441]
[1693891141970,0.004,25735.0,25734.0,3.04746441]
[1693891142237,0.004,25735.0,25734.0,3.04782441]
[1693891142490,0.004,25735.0,25734.0,3.04638441]
[1693891142657,0.004,25735.0,25734.0,3.04722441]
[1693891142870,0.004,25735.0,25734.0,3.04674441]
[1693891143067,0.004,25735.0,25734.0,3.04602441]
[1693891143431,0.004,25735.0,25734.0,3.04314441]
[1693891143692,0.004,25735.0,25734.0,3.02958441]
[1693891144005,0.004,25735.0,25734.0,3.02850441]
[1693891144213,0.004,25735.0,25734.0,3.02838441]
[1693891144419,0.004,25735.0,25734.0,3.02922441]
[1693891144619,0.004,25735.0,25734.0,3.02898441]
[1693891144820,0.004,25735.0,25734.0,3.03426441]
[1693891145084,0.004,25735.0,25734.0,3.03414441]
[1693891145279,0.004,25735.0,25734.0,3.02910441]
[1693891145694,0.004,25735.0,25734.0,3.02886441]
[1693891145957,0.004,25735.0,25734.0,3.01842441]
[1693891146167,0.004,25735.0,25734.0,3.01830441]
[1693891146353,0.004,25735.0,25734.0,3.15813355]
[1693891146555,0.004,25735.0,25734.0,3.15945355]
[1693891146770,0.004,25735.0,25734.0,3.15933355]
[1693891146997,0.004,25735.0,25734.0,3.16101355]
[1693891147206,0.004,25735.0,25734.0,3.16089355]
[1693891147425,0.004,25735.0,25734.0,3.16029355]
[1693891147640,0.004,25735.0,25734.0,3.16125355]
[1693891147814,0.004,25735.0,25734.0,3.16113355]
[1693891148167,0.004,25735.0,25734.0,3.15897355]
[1693891148371,0.004,25735.0,25734.0,3.15873355]
[1693891148779,0.004,25735.0,25734.0,3.15933355]
[1693891148988,0.004,25735.0,25734.0,3.15837355]
[1693891149409,0.004,25735.0,25734.0,3.15801355]
[1693891149595,0.004,25735.0,25734.0,3.15885355]
[1693891149869,0.004,25735.0,25734.0,3.15861355]
[1693891150263,0.004,25735.0,25734.0,3.15837355]
[1693891150467,0.004,25735.0,25734.0,3.15825355]
[1693891150673,0.004,25735.0,25734.0,2.97063878]
[1693891150874,0.004,25735.0,25734.0,2.96859878]
[1693891151265,0.004,25735.0,25734.0,2.96787878]
[1693891151464,0.004,25735.0,25734.0,3.02867851]
[1693891151624,0.004,25735.0,25734.0,3.02699851]
[1693891152010,0.004,25735.0,25734.0,3.02687851]
[1693891152196,0.004,25735.0,25734.0,3.02963851]
[1693891152403,0.004,25735.0,25734.0,3.02975851]
[1693891152532,0.004,25735.0,25734.0,3.02963851]
[1693891152742,0.004,25735.0,25734.0,3.02903851]
[1693891152944,0.004,25735.0,25734.0,3.02915851]
[1693891153157,0.004,25735.0,25734.0,2.94231851]
[1693891153353,0.004,25735.0,25734.0,2.94195851]
[1693891153585,0.004,25735.0,25734.0,2.94051851]
[1693891153866,0.004,25735.0,25734.0,2.94171851]
[1693891154104,0.004,25735.0,25734.0,2.94159851]
[1693891154457,0.004,25735.0,25734.0,2.93307851]
[1693891154675,0.004,25735.0,25734.0,2.93043851]
[1693891154891,0.004,25735.0,25734.0,2.93055851]
[1693891155097,0.004,25735.0,25734.0,2.93163851]
[1693891155268,0.004,25735.0,25734.0,2.93151851]
[1693891155473,0.004,25735.0,25734.0,2.94099851]
[1693891155673,0.004,25735.0,25734.0,2.94159851]
[1693891155907,0.004,25735.0,25734.0,2.93895851]
[1693891156132,0.004,25735.0,25734.0,2.93871851]
[1693891156332,0.004,25735.0,25734.0,2.94039851]
[1693891156536,0.004,25735.0,25734.0,3.12657328]
[1693891156670,0.004,25735.0,25734.0,3.13329328]
[1693891156879,0.004,25735.0,25734.0,3.13257328]
[1693891157085,0.004,25735.0,25734.0,3.13113328]
[1693891157321,0.004,25735.0,25734.0,2.94207851]
[1693891157538,0.004,25735.0,25734.0,2.93607851]
[1693891157741,0.004,25735.0,25734.0,2.93727851]
[1693891158149,0.37717,25740.0,25736.0,0.1454]
[1693891158364,0.2194,25740.0,25739.0,0.0854]
[1693891158601,0.2194,25740.0,25739.0,1.134389]
[1693891158825,0.43659117,25741.0,25739.0,1.18323246]
[1693891159024,0.43659117,25741.0,25740.0,1.13435]
[1693891159772,0.44659117,25741.0,25740.0,1.13435]
[1693891159977,0.44859117,25741.0,25740.0,1.13435]
[1693891160186,0.44359117,25741.0,25740.0,1.13435]
[1693891160386,0.44159117,25741.0,25740.0,1.13435]
[1693891160609,0.44359117,25741.0,25740.0,1.13835]
[1693891161561,0.43359117,25741.0,25740.0,1.13835]
[1693891162605,0.43359117,25741.0,25740.0,1.05295]
[1693891163809,0.43359117,25741.0,25740.0,1.04135874]
[1693891164223,0.43359117,25741.0,25740.0,1.12675874]
[1693891164891,0.43359117,25741.0,25740.0,1.13739365]
[1693891165108,0.43359117,25741.0,25740.0,0.78774365]
[1693891165315,0.43359117,25741.0,25740.0,0.35269365]
[1693891165548,0.934385,25741.0,25740.0,0.05336867]
[1693891165749,1.711355,25741.0,25740.0,0.05336867]
[1693891165959,1.93822819,25741.0,25740.0,0.05336867]
[1693891167267,1.711355,25741.0,25737.0,0.66434991]
[1693891167480,1.711355,25741.0,25738.0,0.349676]
[1693891167695,1.711355,25741.0,25740.0,0.04715591]
[1693891168355,1.710355,25741.0,25738.0,0.699352]
[1693891168596,0.27753761,25740.0,25738.0,0.699352]
[1693891168813,0.27753761,25740.0,25737.0,0.66434791]
[1693891169016,1.05454661,25740.0,25737.0,0.66434791]
[1693891169827,1.20974661,25740.0,25737.0,0.66434791]
[1693891170282,1.98375561,25740.0,25737.0,0.66434791]
[1693891170500,1.98975561,25740.0,25737.0,0.66434791]
[1693891171449,0.21378388,25739.0,25737.0,0.66434791]
[1693891171751,0.21378388,25739.0,25737.0,0.699373]
[1693891172587,0.21678388,25739.0,25737.0,0.699373]
[1693891172784,0.99381988,25739.0,25736.0,0.66604967]
[1693891173054,1.77085588,25739.0,25736.0,0.66604967]
[1693891173442,1.77385588,25739.0,25736.0,0.66604967]
[1693891173661,1.554072,25739.0,25736.0,0.66604967]
[1693891173886,1.82120926,25739.0,25736.0,0.66604967]
[1693891174629,0.27978491,25738.0,25736.0,0.66604967]
[1693891174836,0.27978491,25738.0,25737.0,0.04714861]
[1693891175891,0.28178491,25738.0,25737.0,0.04714861]
[1693891176413,0.27978491,25738.0,25737.0,0.04714861]
[1693891176609,0.28578491,25738.0,25737.0,0.04714861]
[1693891179792,1.06284591,25738.0,25737.0,0.04714861]
[1693891180222,0.28578491,25738.0,25736.0,0.699402]
[1693891180349,0.28578491,25738.0,25737.0,0.04750547]
[1693891184451,2.22655218,25738.0,25737.0,0.04750547]
[1693891184704,2.22655218,25738.0,25735.0,0.784822]
[1693891185613,2.22355218,25738.0,25735.0,0.784822]
[1693891185852,2.22055218,25738.0,25735.0,0.784822]
[1693891186095,2.22255218,25738.0,25735.0,0.784822]
[1693891186354,0.28178491,25738.0,25735.0,0.784822]
[1693891186565,0.004,25738.0,25736.0,0.0854]
[1693891187012,0.004,25738.0,25737.0,0.699382]
[1693891187483,0.002,25738.0,25737.0,0.699382]
[1693891187694,0.004,25738.0,25737.0,0.699382]
[1693891187935,0.002,25738.0,25737.0,0.699382]
[1693891188456,0.005,25738.0,25737.0,0.699382]
[1693891188683,0.003,25738.0,25737.0,0.699382]
[1693891189199,0.006,25738.0,25737.0,1.049073]
[1693891191582,0.006,25738.0,25737.0,1.120953]
[1693891191753,0.006,25738.0,25737.0,1.121373]
[1693891191963,0.006,25738.0,25737.0,1.121673]
[1693891192162,0.006,25738.0,25737.0,1.120893]
[1693891192426,0.006,25738.0,25737.0,1.121253]
[1693891192633,0.006,25738.0,25737.0,1.120533]
[1693891192854,0.006,25738.0,25737.0,1.120473]
[1693891193057,0.006,25738.0,25737.0,1.118853]
[1693891193265,0.006,25738.0,25737.0,1.118793]
[1693891193392,0.006,25738.0,25737.0,1.118373]
[1693891193596,0.006,25738.0,25737.0,1.118133]
[1693891193799,0.006,25738.0,25737.0,1.129713]
[1693891194051,0.006,25738.0,25737.0,1.124013]
[1693891194295,0.006,25738.0,25737.0,1.124373]
[1693891194500,0.006,25738.0,25737.0,1.130313]
[1693891194708,0.006,25738.0,25737.0,1.133013]
[1693891194879,0.006,25738.0,25737.0,1.1748032]
[1693891195085,0.006,25738.0,25737.0,1.1791232]
[1693891195287,0.006,25738.0,25737.0,1.1787032]
[1693891195651,0.006,25738.0,25737.0,1.1723432]
[1693891195824,0.006,25738.0,25737.0,1.1701232]
[1693891196033,0.006,25738.0,25737.0,1.1708432]
[1693891196235,0.006,25738.0,25737.0,1.1706032]
[1693891196535,0.006,25738.0,25737.0,1.1730032]
[1693891196789,0.006,25738.0,25737.0,1.1694632]
[1693891196995,0.006,25738.0,25737.0,1.1692832]
[1693891197200,0.006,25738.0,25737.0,1.1690432]
[1693891197413,0.006,25738.0,25737.0,1.1681432]
[1693891197622,0.006,25738.0,25737.0,1.1695232]
[1693891197833,0.006,25738.0,25737.0,1.1727632]
[1693891198019,0.006,25738.0,25737.0,1.1716832]
[1693891198324,0.006,25738.0,25737.0,1.1755832]